Cogmind - Beta 15 @@@ ROGUE MODE // 2025.07.18 @ 20:34:02 Player: Selene Result: Destroyed by Y-64 Sentinel with Wave Gun Performance ------------- Evolutions (5) 2500 Regions Visited (13) 2600 Robots Destroyed (146) 730 Value Destroyed (3703) 3703 Prototype IDs (44) 880 Alien Tech Used (0) 0 Bonus (561) 561 TOTAL SCORE: 10974 Bonus ------- High Alert Combat Kills 67 Follower Combat Kills 127 Entered Garrisons 200 Aligned with FarCom 300 Friendly Fire -133 Cogmind --------- Core Integrity 0/1000 Matter 36/300 Energy 51/100 System Corruption 13% Temperature Cool (9) Movement Core (50) Location -5/Factory Parts ------- > --- POWER (1) -------- (None) > --- PROPULSION (5) --- (None) > --- UTILITY (9) ------ (None) > --- WEAPON (2) ------- (None) > --- INVENTORY (5) ---- Matter Compressor (0) Advanced Hacking Suite Mass Driver Hypervelocity Mass Driver Heavy Missile Launcher Peak State ------------ > --- POWER ------------ Micro Nuclear Core > --- PROPULSION ------- Airjet Gravmag System Combat Airjet Antigrav System Gyrokinetic Inverter > --- UTILITY ---------- Large Storage Unit Improved Sensor Array Improved Signal Interpreter Core Analyzer ECM Suite Improved Light Armor Plating Makeshift Hacking Suite Improved Hacking Suite Advanced System Shield > --- WEAPON ----------- Phase Cannon KE Penetrator > --- INVENTORY -------- Improved Deuterium Engine Improved Hover Unit Advanced Cooling System Matter Compressor Gravity Neutralizer Advanced Recoil Stabilizer Improved Kinecellerator Improved Medium Armor Plating Advanced Shield Generator Advanced Hacking Suite KE Penetrator Mass Driver Hypervelocity Mass Driver Heavy Missile Launcher CPS Tube [Rating: 76] Favorites ----------- Power Reinforced Deuterium Engine Engine Reinforced Deuterium Engine Power Core Light Nuclear Core Propulsion Light Treads Treads Light Treads Wheel Wheel Hover Unit Gravmag System Flight Unit VTOL Module Utility Huge Storage Unit Device Improved Sensor Array Storage Huge Storage Unit Processor Improved Signal Interpreter Hackware Hacking Suite Protection Medium Armor Plating Weapon Katana Energy Gun Spread Laser Energy Cannon Phase Cannon Ballistic Gun Gauss Rifle Ballistic Cannon Advanced Assault Cannon Launcher Heavy Missile Launcher Special Weapon CPS Tube Impact Weapon Maul Slashing Weapon Katana Build | -11 -10 -10 -10 -9 -8 -7 -7 -7 -7 -7 -7 -7 -5 ------- Run | Yrd Mat Min Exi Min Mat Fac Was Fac Sto Gar Rec Scr Fac Slots Evolved 10 | . . . . . 4 2 . . . . . . 4 Power . | . . . . . . . . . . . . . . Propulsion 3 | . . . . . 1 1 . . . . . . 1 Utility 7 | . . . . . 3 1 . . . . . . 3 Weapon . | . . . . . . . . . . . . . . Parts Attached 147 | 7 15 14 . 3 25 16 4 5 9 4 14 11 20 Power 13 | 1 1 2 . 1 . 2 . 2 1 . 2 . 1 Engine 7 | 1 1 1 . 1 . 1 . . . . 2 . . Core 6 | . . 1 . . . 1 . 2 1 . . . 1 Reactor . | . . . . . . . . . . . . . . Propulsion 42 | 2 4 3 . 1 12 3 2 . 3 1 5 . 6 Treads 11 | . . . . 1 9 1 . . . . . . . Leg . | . . . . . . . . . . . . . . Wheel 9 | 2 4 3 . . . . . . . . . . . Hover 20 | . . . . . 2 2 2 . 3 1 4 . 6 Flight 2 | . . . . . 1 . . . . . 1 . . Utility 53 | 2 5 4 . 1 7 7 1 2 1 2 5 8 8 Device 20 | 1 1 2 . 1 4 1 . . . 1 2 2 5 Storage 9 | 1 2 . . . 1 1 . . . . 2 2 . Processor 3 | . . . . . 1 . . 1 . 1 . . . Hackware 7 | . . . . . . 2 . . . . . 3 2 Protection 14 | . 2 2 . . 1 3 1 1 1 . 1 1 1 Artifact . | . . . . . . . . . . . . . . Weapon 39 | 2 5 5 . . 6 4 1 1 4 1 2 3 5 Energy Gun 15 | 1 4 4 . . 1 . . 1 2 . 1 . 1 Energy Cannon 1 | . . . . . . . . . . . . . 1 Ballistic Gun 8 | 1 . . . . . 2 . . 1 1 . 1 2 Ballistic Cannon 8 | . . . . . 3 2 . . 1 . 1 . 1 Launcher 4 | . 1 1 . . 1 . 1 . . . . . . Special Weapon 1 | . . . . . . . . . . . . 1 . Impact Weapon 1 | . . . . . . . . . . . . 1 . Slashing Weapon 1 | . . . . . 1 . . . . . . . . Piercing Weapon . | . . . . . . . . . . . . . . Special Melee Weapon . | . . . . . . . . . . . . . . Unidentified Prototypes 9 | . . . . . 3 1 . 1 4 . . . . Corrupted Parts 1 | . . . . . . . . . . . . 1 . System Corruption 3 | . . . . . . . . . . . . 3 . Parts Lost 44 | . 2 2 . . 3 2 1 1 3 9 . . 21 Power 5 | . 1 . . . . . . 1 . 1 . . 2 Propulsion 19 | . 1 1 . . 1 1 1 . 2 5 . . 7 Utility 13 | . . . . . 2 . . . 1 1 . . 9 Weapon 7 | . . 1 . . . 1 . . . 2 . . 3 Highest Loss Streak 17 | . 1 2 . . 1 2 1 1 2 7 . . 17 To Critical Strikes . | . . . . . . . . . . . . . . Average Backups 18 | 2 20 23 22 22 24 18 9 9 9 8 7 14 14 Power 1 | . 1 1 1 1 1 . 1 . . . . 1 . Propulsion 4 | 2 4 4 4 4 9 5 1 1 2 1 . . . Utility 8 | . 9 13 11 12 8 7 4 4 3 3 4 11 8 Weapon 3 | . 4 4 5 4 4 3 2 3 3 3 2 1 3 Tool/Special . | . . . . . . . . . . . . . . Unused Backups 56 | . 5 2 1 1 9 11 . 5 . 2 6 2 12 Power 2 | . . . . . 2 . . . . . . . . Propulsion 12 | . 2 . . . 3 4 . 1 . 1 . . 1 Utility 34 | . 2 1 1 1 3 6 . 4 . . 4 2 10 Weapon 8 | . 1 1 . . 1 1 . . . 1 2 . 1 Tool/Special . | . . . . . . . . . . . . . . Average Slot Usage (%) 95 | . 99 100 77 100 99 99 97 100 99 83 82 92 91 Engine 6 | . 14 5 . 11 9 4 . . . . 6 7 1 Core 3 | . . 8 14 2 . 2 7 7 7 5 . . 2 Treads 8 | . . . . . 26 17 . . . . . . . Wheel 8 | . 27 28 28 27 . . . . . . . . . Hover 10 | . . . . . . 12 29 30 30 24 24 30 26 Device 14 | . 11 11 11 12 23 15 15 8 7 6 9 13 9 Storage 9 | . 14 14 14 14 9 7 7 7 7 5 4 7 4 Processor 5 | . . . . . 3 7 7 13 15 15 15 15 10 Hackware 3 | . . . . . . 6 7 7 7 7 7 7 15 Protection 5 | . 2 2 2 1 8 6 5 7 6 6 6 . 4 Energy Gun 9 | . 25 25 5 27 8 4 . . . 2 3 . . Ballistic Cannon 2 | . . . . . 4 4 3 4 5 3 . 3 . Slashing Weapon 2 | . . . . . 5 4 7 7 7 3 . . . Peak Build Rating 76 | 7 13 17 17 20 38 54 51 50 52 53 47 55 76 Average Rating 35 | 5 10 15 13 17 34 44 48 47 51 45 39 48 67 On Entrance 29 | . 7 11 17 15 20 34 51 49 49 51 11 42 55 Naked Turns 14 | . . . . . . . . . . . . . 14 Heaviest Build 119 | 11 95 98 92 108 119 116 34 33 32 29 32 51 53 Greatest Support 80 | 20 32 26 26 26 68 80 33 33 33 32 38 38 51 Greatest Overweight (x) 6 | . 5 3 3 6 1 1 1 . . 2 . 1 1 Average Overweight (x) . | . 2 3 2 2 1 . . . . . . . . Largest Inventory Capacity 25 | 8 25 25 25 25 25 25 10 10 10 10 10 15 15 Average Capacity 19 | 7 22 25 24 24 25 18 10 10 10 9 7 14 14 Most Carried 25 | 7 25 25 25 25 25 25 10 10 10 10 10 15 15 Average Carried 19 | 2 21 24 24 23 24 18 9 9 9 8 7 14 14 Final Capacity 25 | 8 25 25 20 25 25 10 10 10 10 5 10 15 5 Final Carried 25 | 7 25 25 20 25 25 10 9 10 10 5 10 15 5 Class Distribution -------------------- 38% | Scavenger-Mutant 35% | Mutant 9% | Scavenger-Scout 8% | Commander-Mutant 8% | Hacker-Mutant Dominant Class ---------------- Mutant | -10/Materials Mutant | -10/Mines Scavenger-Mutant | -10/Exiles Scavenger-Mutant | -9/Mines Scavenger-Mutant | -8/Materials Scavenger-Mutant | -7/Factory Scavenger-Mutant | -7/Waste Scavenger-Scout | -7/Factory Scavenger-Scout | -7/Storage Mutant | -7/Garrison Commander-Mutant | -7/Recycling Commander-Mutant | -7/Scraptown Hacker-Mutant | -5/Factory Resources | -11 -10 -10 -10 -9 -8 -7 -7 -7 -7 -7 -7 -7 -5 ----------- Run | Yrd Mat Min Exi Min Mat Fac Was Fac Sto Gar Rec Scr Fac Matter Collected 4737 | 272 430 746 35 202 727 641 . 282 350 60 463 107 422 Remotely . | . . . . . . . . . . . . . . Salvage Created 4812 | 110 409 301 . 198 1125 514 . 475 375 53 1046 . 206 Parts 273 | 8 29 19 . 11 80 16 . 28 24 2 38 . 18 Haulers Intercepted 9 | . 2 . . . 3 2 . 1 1 . . . . Recyclers Shooed 5 | . . . . . 1 1 . . . . 2 . 1 Parts Field Recycled . | . . . . . . . . . . . . . . Retrieved Matter . | . . . . . . . . . . . . . . Parts Self-Destructed . | . . . . . . . . . . . . . . Prevented . | . . . . . . . . . . . . . . Kills | -11 -10 -10 -10 -9 -8 -7 -7 -7 -7 -7 -7 -7 -5 ------- Run | Yrd Mat Min Exi Min Mat Fac Was Fac Sto Gar Rec Scr Fac Combat Hostiles Destroyed 109 | . 15 24 . 7 33 6 . 6 9 3 . . 6 Melee 3 | . . . . . . . . 1 2 . . . . Guns 40 | . 12 7 . 5 14 1 . . . . . . 1 Cannons 21 | . . . . . 8 5 . 1 3 3 . . 1 AOE 43 | . 3 17 . 2 10 . . 4 4 . . . 3 Classes Destroyed 16 | 2 5 6 . . 2 1 . . . . . . . Worker 13 | . . 1 . 2 1 3 . 2 2 . . . 2 Builder 5 | . . 1 . . 1 . . . 1 . 1 . 1 Tunneler 3 | 1 . 1 . . . . . . . . 1 . . Hauler 9 | . 2 . . . 3 2 . 1 1 . . . . Recycler 15 | 1 . . . 1 . 1 . 3 1 . 8 . . Mechanic 2 | . 1 . . . . 1 . . . . . . . Operator 2 | . . . . . 1 . . . . . . . 1 Watcher 4 | . 1 . . . 1 . . 2 . . . . . Swarmer 46 | . 9 3 . 6 13 . . 4 4 3 . . 4 Grunt 28 | . 6 1 . 1 12 4 . . 4 . . . . Duelist 1 | . . . . . 1 . . . . . . . . Sentry 9 | . . 2 . . 7 . . . . . . . . Demolisher 1 | . . 1 . . . . . . . . . . . Programmer 7 | . . . . . . 2 . 2 1 . . . 2 Assembled 17 | . . 17 . . . . . . . . . . . Guerrilla 1 | . . 1 . . . . . . . . . . . Best Kill Streak 6 | 2 4 6 . 5 4 2 . 6 5 3 5 . 4 Combat Bots Only 6 | . 3 6 . 4 4 2 . 4 5 3 . . 3 Max Kills in Single Turn 3 | 1 2 3 . 2 3 1 . 3 2 1 1 . 2 Gunslinging . | . . . . . . . . . . . . . . Exploded 3 | . 2 3 . 2 3 . . 3 2 . . . 2 Melee 1 | . . . . . . . . 1 1 . . . . Uniques/NPCs Destroyed . | . . . . . . . . . . . . . . Combat | -11 -10 -10 -10 -9 -8 -7 -7 -7 -7 -7 -7 -7 -5 -------- Run | Yrd Mat Min Exi Min Mat Fac Was Fac Sto Gar Rec Scr Fac Hostile Shots Fired 904 | . 51 43 . 13 134 56 1 43 200 103 . . 260 Missed 353 | . 10 11 . 2 43 23 . 25 100 39 . . 100 Hits 551 | . 41 32 . 11 91 33 1 18 100 64 . . 160 Melee 9 | . . 6 . . 2 . 1 . . . . . . Projectile 542 | . 41 26 . 11 89 33 . 18 100 64 . . 160 AOE 7 | . . 4 . . . . . . . . . . 3 Critical Strikes 20 | . 1 . . . 4 2 1 . 2 . . . 10 Part Disruptions 1 | . . . . . . . . . . . . . 1 Damage Taken 8246 | . 402 624 . 96 1349 509 35 225 1039 874 27 . 3066 Core 1901 | . 54 111 . 34 99 61 35 13 241 247 . . 1006 Absorbed by Shields 107 | . . . . . . . . . . 95 12 . . Regen/Repaired (Parts) 782 | . 112 . . . 152 . . . . . . 387 131 Core Remaining (%) 54 | 100 . . . 20 82 . . . . . . 14 . Volleys Fired 467 | 2 46 44 3 15 93 34 . 32 58 16 35 . 89 Largest 2 | 2 2 2 2 2 2 2 . 1 1 1 1 . 2 Hottest 140 | 60 130 130 121 121 140 115 . 40 40 50 56 . 118 Shots Fired 645 | 4 90 60 4 29 163 52 . 32 58 16 34 . 103 Gun 362 | 4 88 30 4 28 99 19 . 13 . 5 32 . 40 Cannon 231 | . . . . . 57 33 . 16 52 11 2 . 60 Launcher 52 | . 2 30 . 1 7 . . 3 6 . . . 3 Special . | . . . . . . . . . . . . . . Kinetic 248 | 2 5 . . . 57 34 . 29 52 13 2 . 54 Thermal 310 | 2 83 30 4 28 99 18 . . . . . . 46 Explosive 52 | . 2 30 . 1 7 . . 3 6 . . . 3 Electromagnetic 35 | . . . . . . . . . . 3 32 . . Robot Hit Streak 12 | 3 7 11 . 12 11 9 . 4 5 2 7 . 8 Robot Miss Streak 7 | . 7 5 . 4 4 5 . 5 4 3 2 . 5 Penetration Max . | . . . . . . . . . . . . . . Secondary Targets 1 | . . . . . 1 . . . . . . . . Max Gunslinging Chain 1 | . . . . . 1 . . . . . . . . Shots Hit Robots 401 | 3 58 31 . 20 119 52 . 23 34 6 25 . 30 Core Hits 311 | 3 55 60 . 19 77 17 . 17 19 3 19 . 22 Critical Kills . | . . . . . . . . . . . . . . Critical Parts Destroyed 2 | . . . . . . . . . . . 1 . 1 Critical Strikes 18 | . . . . 1 8 4 . . 2 . 2 . 1 Burn 10 | . . . . 1 7 2 . . . . . . . Destroy 2 | . . . . . . . . . . . 1 . 1 Blast 5 | . . . . . 1 2 . . 2 . . . . Corrupt 1 | . . . . . . . . . . . 1 . . Melee Attacks 137 | . . . . . 22 37 8 38 27 5 . . . Impact . | . . . . . . . . . . . . . . Slashing 137 | . . . . . 22 37 8 38 27 5 . . . Piercing . | . . . . . . . . . . . . . . Sneak Attacks 23 | . . . . . 5 7 . 5 6 . . . . Combat Hostiles . | . . . . . . . . . . . . . . Follow-up Attacks . | . . . . . . . . . . . . . . Damage Inflicted 13224 | 30 857 1450 . 394 3255 1828 . 1361 1708 162 710 . 1469 Guns 3911 | 30 715 322 . 276 1312 286 . 75 . 15 480 . 400 Cannons 2959 | . . . . . 824 665 . 185 762 118 18 . 387 Explosions 4045 | . 142 1128 . 118 786 . . 588 443 . 212 . 628 Melee 2255 | . . . . . 333 877 . 513 503 29 . . . Ramming 54 | . . . . . . . . . . . . . 54 Kinetic 3211 | 7 17 . . . 824 665 . 260 762 133 18 . 525 Thermal 3391 | 23 698 322 . 276 1312 286 . . . . 212 . 262 Explosive 3808 | . 142 1128 . 118 786 . . 588 443 . . . 603 Electromagnetic 505 | . . . . . . . . . . . 480 . 25 Impact . | . . . . . . . . . . . . . . Slashing 2255 | . . . . . 333 877 . 513 503 29 . . . Piercing . | . . . . . . . . . . . . . . Highest Corruption 13 | . . 5 5 5 . . . . 2 2 3 3 13 Average Corruption 4 | . . 5 5 5 . . . . 1 2 2 3 5 Corruption Purged . | . . . . . . . . . . . . . . Corruption Blocked . | . . . . . . . . . . . . . . Effects 87 | . . 29 13 9 . . . . . 1 12 1 22 Message Errors 31 | . . 9 5 4 . . . . . 1 4 . 8 Matter Fused 23 | . . 7 2 1 . . . . . . 3 . 10 Heat Flow Errors 11 | . . 5 2 . . . . . . . 1 1 2 Energy Discharges 4 | . . 2 1 . . . . . . . . . 1 Parts Rejected 1 | . . . . 1 . . . . . . . . . Parts Fused 1 | . . . . . . . . . . . 1 . . Data Loss (minor) 8 | . . 2 3 2 . . . . . . 1 . . Data Loss (major) 3 | . . 1 . 1 . . . . . . 1 . . Misfires 2 | . . 2 . . . . . . . . . . . Alerts 1 | . . 1 . . . . . . . . . . . Weapon Failures 2 | . . . . . . . . . . . 1 . 1 Overload Shots . | . . . . . . . . . . . . . . Overflow Damage 627 | . . 18 . . 212 139 . 59 110 . 2 . 87 Projectiles 44 | . . . . . 2 5 . 24 12 . . . 1 Explosions 153 | . . 18 . . 71 . . . 1 . 2 . 61 Melee 430 | . . . . . 139 134 . 35 97 . . . 25 Knockbacks 25 | . . . . . 11 6 . 3 3 . . . 2 Impact 1 | . . . . . . . . . . . . . 1 Kinetic 24 | . . . . . 11 6 . 3 3 . . . 1 Secondary . | . . . . . . . . . . . . . . Self-Inflicted Damage 127 | . . . . . 42 . . . 19 . 39 . 27 Shots 5 | . . . . . 2 . . . 1 . 2 . . Rammed 2 | . . . . . . . . . . . . . 2 Targets Rammed 2 | . . . . . . . . . . . . . 2 Kicked . | . . . . . . . . . . . . . . Crushed . | . . . . . . . . . . . . . . Highest Temperature 613 | 20 414 613 236 492 83 26 . 20 49 40 315 184 462 Average Temperature 98 | 15 143 152 65 137 19 13 . 16 14 7 74 100 103 Received Heat Transfer 1785 | . 126 18 . 12 585 288 . 27 312 33 . . 384 Effects 13 | . 2 7 . . . . . . . . . . 4 Shutdowns 3 | . 1 1 . . . . . . . . . . 1 Energy Bleed 3 | . . 1 . . . . . . . . . . 2 Matter Decay 1 | . . . . . . . . . . . . . 1 Damage (minor) 4 | . 1 3 . . . . . . . . . . . Damage (major) 2 | . . 2 . . . . . . . . . . . Siege Activations . | . . . . . . . . . . . . . . Martial Activations . | . . . . . . . . . . . . . . Shielding Activations . | . . . . . . . . . . . . . . Robots Disrupted . | . . . . . . . . . . . . . . Combat Hostiles . | . . . . . . . . . . . . . . Robots Corrupted 1 | . . . . . . . . . . . . . 1 Combat Hostiles 1 | . . . . . . . . . . . . . 1 Parts Fried 1 | . . . . . . . . . . . 1 . . Impact Corruptions 2 | . . . . . . . . . . . . . 2 Robots Melted 1 | . . . . . 1 . . . . . . . . Combat Hostiles 1 | . . . . . 1 . . . . . . . . Parts Melted 16 | . 1 2 . 2 7 4 . . . . . . . Heat Transferred 6509 | 50 1227 592 . 604 2872 592 . . . . 276 . 296 Parts Sabotaged . | . . . . . . . . . . . . . . Parts Stolen . | . . . . . . . . . . . . . . Parts Stripped . | . . . . . . . . . . . . . . Power Chain Reactions 2 | . . . . . . . . . . . 2 . . Alert | -11 -10 -10 -10 -9 -8 -7 -7 -7 -7 -7 -7 -7 -5 ------- Run | Yrd Mat Min Exi Min Mat Fac Was Fac Sto Gar Rec Scr Fac Maximum Alert Level 3 | . . . . . 1 . . 1 3 2 1 . 2 Low Security (%) 62 | 100 100 100 . 100 27 100 100 84 15 . 45 . 37 Level 1 33 | . . . . . 72 . . 15 26 . 54 . 62 Level 2 3 | . . . . . . . . . 53 100 . . . Level 3 . | . . . . . . . . . 4 . . . . Level 4 . | . . . . . . . . . . . . . . Level 5 . | . . . . . . . . . . . . . . High Security . | . . . . . . . . . . . . . . Max Security . | . . . . . . . . . . . . . . Peak Influence 736 | 10 159 75 . 100 359 137 4 304 736 596 263 . 401 Initial 481 | . . . . . 29 137 4 . 142 481 243 . . Average 136 | . 40 15 . 29 201 38 1 53 410 547 201 . 218 Influence Increases 5023 | 10 488 307 . 207 1060 283 2 562 906 150 232 . 816 Destroy 0b10 Robot/C 1920 | . 300 140 . 140 660 120 . 120 260 60 . . 120 Destroy 0b10 Robot/NC 305 | 10 20 15 . 15 35 35 . 40 25 . 90 . 20 Destroy Leader 384 | . 56 30 . 20 148 32 . 36 42 . . . 20 Allied During Kill 33 | . . . . 18 3 . . . 12 . . . . Successful Hack 189 | . 71 . . . 14 10 . 68 10 . . . 16 Select Force Hacks 180 | . 30 . . . 30 . . . . . 120 . . Disable Machine 405 | . . 15 . . 75 75 . 30 45 15 . . 150 Anti-Garrison Action 50 | . . . . . . . . . . 50 . . . Destroy Structure 522 | . 11 107 . 14 95 11 2 73 92 10 7 . 100 Partial Spotted 75 | . . . . . . . . 30 . . . . 45 Lose Combat Pursuer 960 | . . . . . . . . 165 420 15 15 . 345 Influence Decreases 4774 | 10 488 291 16 131 833 574 14 249 479 349 616 157 567 Entered New Map 1122 | . . . 16 . 47 166 8 . 171 259 298 157 . Time Decay 2872 | 10 318 271 . 131 596 388 6 239 238 . 318 . 357 Lost Part 420 | . 20 20 . . 20 20 . 10 30 90 . . 210 Lost Ally 60 | . . . . . 20 . . . 40 . . . . Purge Threat 300 | . 150 . . . 150 . . . . . . . . Squads Dispatched 32 | . 4 . . 1 5 6 . 4 6 . . . 6 Investigation 13 | . 3 . . 1 3 3 . . . . . . 3 Extermination 8 | . . . . . . 3 . 2 1 . . . 2 Reinforcement 9 | . 1 . . . 2 . . 2 3 . . . 1 Assault 2 | . . . . . . . . . 2 . . . . Garrison . | . . . . . . . . . . . . . . Intercept . | . . . . . . . . . . . . . . Searches Triggered . | . . . . . . . . . . . . . . Construction Impeded 2 | . . . . . . . . 1 1 . . . . Haulers Reinforced 1 | . . . . . . . . . 1 . . . . Active Scanning Responses . | . . . . . . . . . . . . . . Cargo Convoy Interrupts . | . . . . . . . . . . . . . . Stealth | -11 -10 -10 -10 -9 -8 -7 -7 -7 -7 -7 -7 -7 -5 --------- Run | Yrd Mat Min Exi Min Mat Fac Was Fac Sto Gar Rec Scr Fac Distress Signals 17 | . 2 . . . 7 . . 1 3 . . . 4 Communications Jammed . | . . . . . . . . . . . . . . Distress Signals . | . . . . . . . . . . . . . . Times Spotted 244 | . 21 29 . 7 42 10 6 25 41 18 3 . 42 Peak Tracking Total 15 | . 5 5 9 4 4 4 6 5 15 14 2 . 13 Tactical Retreats 30 | . . 3 . . . . 1 7 8 1 1 . 9 Traps | -11 -10 -10 -10 -9 -8 -7 -7 -7 -7 -7 -7 -7 -5 ------- Run | Yrd Mat Min Exi Min Mat Fac Was Fac Sto Gar Rec Scr Fac Traps Triggered 7 | . 1 . . . . 1 . 2 . 2 . . 1 Indirectly . | . . . . . . . . . . . . . . Trap Hack Attempts . | . . . . . . . . . . . . . . Triggered . | . . . . . . . . . . . . . . Disarmed . | . . . . . . . . . . . . . . Reprogrammed . | . . . . . . . . . . . . . . Reused . | . . . . . . . . . . . . . . Traps Extracted . | . . . . . . . . . . . . . . Installed . | . . . . . . . . . . . . . . Triggered . | . . . . . . . . . . . . . . Machines | -11 -10 -10 -10 -9 -8 -7 -7 -7 -7 -7 -7 -7 -5 ---------- Run | Yrd Mat Min Exi Min Mat Fac Was Fac Sto Gar Rec Scr Fac Machines Disabled 31 | . . 1 3 . 5 5 . 2 3 2 . . 10 Max in Single Turn 3 | . . 1 1 . 1 1 . 1 1 1 . . 3 Garrison Access 5 | . . . . . 1 2 . 1 . . . . 1 Garrison Relay 1 | . . . . . . . . . . 1 . . . Machines Repaired . | . . . . . . . . . . . . . . Machines Dismantled . | . . . . . . . . . . . . . . Machines Sabotaged . | . . . . . . . . . . . . . . Overloaded Fab Kills . | . . . . . . . . . . . . . . Hacking | -11 -10 -10 -10 -9 -8 -7 -7 -7 -7 -7 -7 -7 -5 --------- Run | Yrd Mat Min Exi Min Mat Fac Was Fac Sto Gar Rec Scr Fac Machines Accessed 79 | . 11 1 2 1 14 12 . 10 6 . 10 . 12 Terminals 35 | . 8 1 . . 8 5 . 3 4 . 5 . 1 Fabricators 6 | . . . . . . 3 . 1 . . . . 2 Repair Stations 7 | . 1 . . . 2 1 . 1 . . . . 2 Recycling Units 16 | . 2 . . . 2 . . 2 1 . 5 . 4 Scanalyzers 5 | . . . . . 1 1 . 2 . . . . 1 Garrison Access 7 | . . . . . 1 2 . 1 1 . . . 2 Total Hacks 211 | . 42 2 2 1 41 33 . 25 10 . 26 . 29 Successful 118 | . 23 1 2 1 25 22 . 11 4 . 9 . 20 Failed 93 | . 19 1 . . 16 11 . 14 6 . 17 . 9 Catastrophic 9 | . 1 . . . 2 . . 2 . . 4 . . Database Lockouts . | . . . . . . . . . . . . . . Manual 97 | . 27 2 1 . 13 15 . 9 5 . 18 . 7 Terminals 105 | . 34 2 . . 21 16 . 8 7 . 13 . 4 Fabricators 12 | . . . . . . 7 . 2 . . . . 3 Repair Stations 16 | . 2 . . . 7 2 . 2 . . . . 3 Recycling Units 40 | . 6 . . . 4 . . 4 2 . 13 . 11 Scanalyzers 22 | . . . . . 8 3 . 8 . . . . 3 Garrison Access 13 | . . . . . 1 5 . 1 1 . . . 5 Terminal Hacks 26 | . 10 1 2 1 5 4 . . 2 . . . 1 Record 2 | . . . 1 . . 1 . . . . . . . Part Schematic 2 | . 2 . . . . . . . . . . . . Robot Analysis 3 | . 2 1 . . . . . . . . . . . Prototype ID Bank 6 | . 2 . . . 3 1 . . . . . . . Open Door 3 | . . . . 1 . . . . 2 . . . . Branch Access Points 1 | . . . . . . 1 . . . . . . . Terminal Index 1 | . . . . . . 1 . . . . . . . Unreport Threat 2 | . 1 . . . 1 . . . . . . . . Recall Reinforcements 2 | . 1 . . . . . . . . . . . 1 Hauler Manifests 2 | . 1 . . . 1 . . . . . . . . Registered Components 1 | . 1 . . . . . . . . . . . . Proto ID Catalog 1 | . . . 1 . . . . . . . . . . Fabricator Hacks 8 | . . . . . . 5 . 1 . . . . 2 Network Status 3 | . . . . . . 1 . 1 . . . . 1 Load Schematic 3 | . . . . . . 3 . . . . . . . Build 2 | . . . . . . 1 . . . . . . 1 Repair Station Hacks 10 | . 2 . . . 6 . . . . . . . 2 Scan Component 5 | . 1 . . . 3 . . . . . . . 1 Repair 5 | . 1 . . . 3 . . . . . . . 1 Recycling Unit Hacks 13 | . 2 . . . 2 . . 2 . . 3 . 4 Retrieve Components 13 | . 2 . . . 2 . . 2 . . 3 . 4 Scanalyzer 16 | . . . . . 7 2 . 4 . . . . 3 Insert Component 8 | . . . . . 3 1 . 3 . . . . 1 Analyze 8 | . . . . . 4 1 . 1 . . . . 2 Garrison Access Hacks 6 | . . . . . 1 2 . 1 1 . . . 1 Unlock Access 1 | . . . . . . . . . 1 . . . . Seal Access 5 | . . . . . 1 2 . 1 . . . . 1 Unauthorized Hacks 39 | . 9 . . . 4 9 . 3 1 . 6 . 7 Terminals 24 | . 7 . . . 3 6 . 3 1 . 2 . 2 Assimilate 3 | . 1 . . . . 2 . . . . . . . Botnet 19 | . 6 . . . 3 4 . 2 1 . 2 . 1 Skim 2 | . . . . . . . . 1 . . . . 1 Fabricators 2 | . . . . . . 2 . . . . . . . Recompile 2 | . . . . . . 2 . . . . . . . Repair Stations 2 | . . . . . . 1 . . . . . . 1 Mechanics 1 | . . . . . . 1 . . . . . . . Patch 1 | . . . . . . . . . . . . . 1 Recycling Units 11 | . 2 . . . 1 . . . . . 4 . 4 Reject 3 | . 1 . . . . . . . . . . . 2 Recyclers 1 | . . . . . . . . . . . . . 1 Mask 1 | . . . . . . . . . . . . . 1 Tunnel 6 | . 1 . . . 1 . . . . . 4 . . Scanalyzers . | . . . . . . . . . . . . . . Garrison Access . | . . . . . . . . . . . . . . Data Cores Recovered . | . . . . . . . . . . . . . . Used . | . . . . . . . . . . . . . . Hacking Detections 58 | . 10 1 . . 12 8 . 9 3 . 8 . 7 Full Trace Events 9 | . 2 . . . 2 1 . . . . 3 . 1 Feedback Events 1 | . . . . . . . . . . . 1 . . Corruption 1 | . . . . . . . . . . . 1 . . Feedback Blocked . | . . . . . . . . . . . . . . Robot Schematics Acquired . | . . . . . . . . . . . . . . Robots Built . | . . . . . . . . . . . . . . Authchips . | . . . . . . . . . . . . . . Time . | . . . . . . . . . . . . . . Total Robot Build Rating . | . . . . . . . . . . . . . . Part Schematics Acquired 7 | . 2 . . . 3 . . 1 . . . . 1 Parts Built 3 | . . . . . . 1 . . . . . . 2 Authchips 1 | . . . . . . 1 . . . . . . . Time 96 | . . . . . . 38 . . . . . . 58 Total Part Build Rating 17 | . . . . . . 3 . . . . . . 14 Parts Repaired 5 | . 1 . . . 3 . . . . . . . 1 Time 172 | . 32 . . . 102 . . . . . . . 38 Parts Recycled . | . . . . . . . . . . . . . . Recycled Matter . | . . . . . . . . . . . . . . Retrieved Matter . | . . . . . . . . . . . . . . Retrieved Components 38 | . 15 . . . 11 . . 2 . . 5 . 5 Parts Scanalyzed 6 | . . . . . 3 1 . 1 . . . . 1 Part Schematics Acquired 5 | . . . . . 3 . . 1 . . . . 1 Parts Damaged . | . . . . . . . . . . . . . . Bothacking | -11 -10 -10 -10 -9 -8 -7 -7 -7 -7 -7 -7 -7 -5 ------------ Run | Yrd Mat Min Exi Min Mat Fac Was Fac Sto Gar Rec Scr Fac Used RIF Installer . | . . . . . . . . . . . . . . Robots Hacked . | . . . . . . . . . . . . . . Non-combat . | . . . . . . . . . . . . . . Combat . | . . . . . . . . . . . . . . Robot Hacks Applied . | . . . . . . . . . . . . . . Relay Couplers Released 4 | . . . . . . . . . . 4 . . . Machine Destruction 4 | . . . . . . . . . . 4 . . . Fabnet Peak Effective % . | . . . . . . . . . . . . . . Robots Rewired 5 | . . . . . . . . . . . 5 . . Allies Hacked . | . . . . . . . . . . . . . . Hacks Repelled . | . . . . . . . . . . . . . . Allies | -11 -10 -10 -10 -9 -8 -7 -7 -7 -7 -7 -7 -7 -5 -------- Run | Yrd Mat Min Exi Min Mat Fac Was Fac Sto Gar Rec Scr Fac Total Allies 13 | . . . . 3 . 2 1 . 2 . 5 . . Largest Group 5 | . . . . 3 3 2 3 . 2 . 5 4 4 Highest-Rated Group 113 | . . . . 77 77 36 66 . 62 . 113 103 103 Highest-Rated Ally 40 | . . . . 31 31 26 31 . 31 . 40 40 40 Initial Warlord ECA Mod 7 | . . . . . . . . . . . 3 3 1 Total Orders 7 | . . . . . . 4 . . . . 2 . 1 STAY 4 | . . . . . . 2 . . . . 1 . 1 FOLLOW 3 | . . . . . . 2 . . . . 1 . . Ally Attacks 34 | . . . . 4 9 . 9 . 10 . 2 . . Total Damage 462 | . . . . . 128 . 192 . 101 . 41 . . Kills 5 | . . . . . . . . . 4 . 1 . . Allies Corrupted . | . . . . . . . . . . . . . . Allies Melted . | . . . . . . . . . . . . . . Intel | -11 -10 -10 -10 -9 -8 -7 -7 -7 -7 -7 -7 -7 -5 ------- Run | Yrd Mat Min Exi Min Mat Fac Was Fac Sto Gar Rec Scr Fac Active Infowar (turns) 10792 | 25 873 996 . 364 3225 1276 100 860 509 114 699 769 982 Sensors 6396 | . . . . . 1215 1276 100 860 509 1 699 769 967 Terrain 1970 | . . . . . 1970 . . . . . . . . Seismic 4471 | 25 873 996 . 364 2213 . . . . . . . . Machine Analysis 1210 | . . . . . . . . 699 509 2 . . . Jamming 142 | . . . . . . . . . . 113 29 . . ECM 106 | . . . . . . . . . . . 1 . 105 Robot Analysis Total 3 | . 2 1 . . . . . . . . . . . Derelict Logs Recovered 2 | . . 2 . . . . . . . . . . . Drone Launches . | . . . . . . . . . . . . . . Drone Recoveries . | . . . . . . . . . . . . . . Exploration | -11 -10 -10 -10 -9 -8 -7 -7 -7 -7 -7 -7 -7 -5 ------------- Run | Yrd Mat Min Exi Min Mat Fac Was Fac Sto Gar Rec Scr Fac Turns Passed 12620 | 67 1155 1398 733 472 3341 1276 100 860 509 128 708 771 1102 Spaces Moved 10350 | 56 711 922 540 296 1162 1229 107 1418 621 132 826 969 1361 Core 152 | 1 . . . . . . . . . 22 99 . 30 Treads 1431 | . . . . . 1162 269 . . . . . . . Legs . | . . . . . . . . . . . . . . Wheels 2524 | 55 711 922 540 296 . . . . . . . . . Hover 6243 | . . . . . . 960 107 1418 621 110 727 969 1331 Flight . | . . . . . . . . . . . . . . Fastest Speed 38 | 50 80 135 120 105 240 38 38 40 38 38 50 53 48 Average Speed 95 | 79 121 135 132 129 240 82 65 40 39 43 53 73 51 Slowest Speed 240 | 80 175 135 135 190 240 240 102 40 40 150 60 115 118 Overloaded Moves . | . . . . . . . . . . . . . . Propulsion Burnouts . | . . . . . . . . . . . . . . Robots Hopped . | . . . . . . . . . . . . . . Potential Cave-ins 9 | . . . . . . . 6 . 3 . . . . Cave-ins Triggered . | . . . . . . . . . . . . . . Exploration Rate (%) 56 | 3 98 99 77 62 67 24 80 32 54 25 81 57 32 Regions Visited 13 Branch Regions 6 Pre-discovered Areas 8 | . 1 1 1 . 1 . . . . . 4 . . Known Exits Taken 5 | . . . . . 1 . . 1 1 . 1 1 . Unknown Exits Taken 5 | 1 1 1 1 1 . . . . . . . . . Scrap Searched 7 | . . 1 . 1 . . . . . . . 5 . Spaces Dug 93 | . 5 . . . 17 9 8 27 10 . . . 17 Terrain Destroyed 626 | . 10 227 . 14 91 11 8 74 126 . 5 . 60 Melee 66 | . . . . . 15 9 8 25 9 . . . . Projectile 87 | . . . . . 18 2 . 7 19 . . . 41 AOE 473 | . 10 227 . 14 58 . . 42 98 . 5 . 19 Terrain Rammed . | . . . . . . . . . . . . . . Walls Destroyed . | . . . . . . . . . . . . . . Machines Disabled . | . . . . . . . . . . . . . . Actions | -11 -10 -10 -10 -9 -8 -7 -7 -7 -7 -7 -7 -7 -5 --------- Run | Yrd Mat Min Exi Min Mat Fac Was Fac Sto Gar Rec Scr Fac Total 12280 | 71 913 1017 554 356 1523 1389 122 1626 782 179 1061 1023 1664 Wait 687 | . 88 17 . 21 121 23 . 84 51 2 111 21 148 Move 10339 | 55 710 921 539 295 1161 1229 106 1417 621 131 825 968 1361 Hop . | . . . . . . . . . . . . . . Pick Up 166 | 7 29 5 . 8 37 19 1 10 5 2 14 10 19 Fast Attach 39 | 7 2 . . 1 4 1 1 1 2 . 9 5 6 Attach 49 | . 2 2 2 1 7 5 2 1 3 3 4 1 16 Detach 9 | . 1 . 2 1 . . . . . 2 1 1 1 Swap 161 | . 19 18 4 10 44 20 4 7 9 3 3 10 10 Drop 140 | . 16 10 4 4 34 21 . 10 6 3 13 7 12 Fire 467 | 2 46 44 3 15 93 34 . 32 58 16 35 . 89 Melee 137 | . . . . . 22 37 8 38 27 5 . . . Ram 2 | . . . . . . . . . . . . . 2 Kick . | . . . . . . . . . . . . . . Crush . | . . . . . . . . . . . . . . Escape Stasis 38 | . . . . . . . . 26 . 12 . . . Rewire 46 | . . . . . . . . . . . 46 . . Trap . | . . . . . . . . . . . . . . Miscellaneous . | . . . . . . . . . . . . . . Route ------- -11/Scrapyard -10/Materials (discovered 4 exits: [*Mat x3] / *Min) -10/Mines (discovered 4 exits: [*Mat x2] / *Exi / [*Sub]) -10/Exiles -9/Mines -8/Materials -7/Factory (discovered 4 exits: *Sto x2 / Low x2) -7/Waste -7/Factory (discovered 2 exits: *Sto / *Low) -7/Storage -7/Garrison -7/Recycling -7/Scraptown -5/Factory (discovered 4 exits: *Fac x2 / *Upp x2) History --------- Turn | Location | Event 8 | -11/Scrapyard | Discovered new exit (range 16) 68 | -11/Scrapyard | Entered Materials 217 | -10/Materials | Discovered new exit (range 14) 303 | -10/Materials | Build established: Mutant 443 | -10/Materials | Discovered new exit (range 14) 793 | -10/Materials | Discovered new exit (range 16) 959 | -10/Materials | Discovered new exit (range 15) 1164 | -10/Materials | Repaired Med. Armor Plating 1223 | -10/Materials | Entered Mines 1224 | -10/Mines | Assembled infested the area 1225 | -10/Mines | Met a Derelict bent on vengeance 1229 | -10/Mines | Assisted by a Guerilla fighting off Assembled 1471 | -10/Mines | Core integrity fell below 50% 1524 | -10/Mines | Found a Scrap Suit stashed away for nefarious purposes 1528 | -10/Mines | Found Scrap Suit 1634 | -10/Mines | Discovered new exit (range 13) 1635 | -10/Mines | Learned Materials garrison access intel 1945 | -10/Mines | Discovered new exit (range 10) 2080 | -10/Mines | Learned Materials emergency access door positions 2182 | -10/Mines | Learned location of Storage (-7) 2410 | -10/Mines | Deemed a non-threat by the Exiles lab entrance 2410 | -10/Mines | Discovered new exit (range 5) 2441 | -10/Mines | Discovered new exit (range 10) 2621 | -10/Mines | Entered Exiles 2654 | -10/Exiles | Met 8R-AWN 2692 | -10/Exiles | Met EX-HEX 2730 | -10/Exiles | Met EX-BIN 2754 | -10/Exiles | Met EX-DEC 2764 | -10/Exiles | Learned location of Zion (-7) 2819 | -10/Exiles | Visited The Gauntlet 2872 | -10/Exiles | Build established: Scavenger-Mutant 3072 | -10/Exiles | Aligned with FarCom system 3073 | -10/Exiles | Given EX-Vault access code 3104 | -10/Exiles | Opened EX-Vault 3138 | -10/Exiles | Warned to stay clear of 0b10 Research branches 3227 | -10/Exiles | Discovered new exit (range 10) 3326 | -10/Exiles | Attacked by the Exiles 3354 | -10/Exiles | Entered Mines 3429 | -9/Mines | Met a Derelict shopkeep closing up shop 3635 | -9/Mines | A weapon hastily lodged in a ceiling crevice suddenly fell to the ground 3752 | -9/Mines | Discovered new exit (range 13) 3793 | -9/Mines | Received a Mining Laser from a helpful Derelict 3826 | -9/Mines | Entered Materials 3826 | -8/Materials | Accompanied by 3 allies 3826 | -8/Materials | Evolved 4 slots: Propulsion x1, Utility x3 3828 | -8/Materials | Loaded intel: 1 garrison access location 3831 | -8/Materials | Led the pair of lost Derelicts to an unsafe place 4308 | -8/Materials | Repaired Med. Armor Plating 4347 | -8/Materials | Repaired Imp. Terrain Scanner 5854 | -8/Materials | Discovered new exit (range 5) 6115 | -8/Materials | Identified exit to Factory 6341 | -8/Materials | Build established: Mutant 6884 | -8/Materials | Repaired Med. Armor Plating? 7167 | -8/Materials | Entered Factory 7167 | -7/Factory | Evolved 2 slots: Propulsion x1, Utility x1 7484 | -7/Factory | Build established: Scavenger-Mutant 8222 | -7/Factory | Fabricated Aerolev Unit? 8398 | -7/Factory | Identified exit to Storage 8398 | -7/Factory | Identified exit to Lower Caves 8443 | -7/Factory | Sucked down chute 8443 | -7/Factory | Entered Waste 8444 | -7/Waste | Met a frightened Derelict 8450 | -7/Waste | Spotted C-40 Crusher 8451 | -7/Waste | Spotted C-40 Crusher 8458 | -7/Waste | 2 allies followed down the chute 8467 | -7/Waste | Spotted C-40 Crusher 8469 | -7/Waste | Spotted C-40 Crusher 8477 | -7/Waste | Crushed by Compactor (1 part destroyed, 2 dropped) 8480 | -7/Waste | Spotted C-40 Crusher 8521 | -7/Waste | Spotted C-40 Crusher 8539 | -7/Waste | Discovered new exit (range 11) 8543 | -7/Waste | Identified exit to Factory 8543 | -7/Waste | Entered Factory 8714 | -7/Factory | Discovered exit to Storage (range 14) 8746 | -7/Factory | Discovered exit to Lower Caves (range 5) 9001 | -7/Factory | Build established: Scavenger-Scout 9403 | -7/Factory | Entered Storage 9415 | -7/Storage | Met a pair of Derelict thieves 9912 | -7/Storage | Identified exit to Garrison 9912 | -7/Storage | Entered Garrison 9947 | -7/Garrison | Garrison Relay disabled 9956 | -7/Garrison | Triggered checkpoint 9964 | -7/Garrison | Core integrity fell below 50% 10014 | -7/Garrison | Triggered checkpoint 10034 | -7/Garrison | Discovered new exit (range 13) 10039 | -7/Garrison | Core integrity fell below 20% 10039 | -7/Garrison | Identified exit to Recycling 10040 | -7/Garrison | Entered Recycling 10064 | -7/Recycling | Lost 7 parts (5n1u1w) 10235 | -7/Recycling | Build established: Mutant 10662 | -7/Recycling | Scanned before Scraplab entrance 10733 | -7/Recycling | Entered Scraplab 10737 | -7/Recycling | Discovered new exit (range 3) 10738 | -7/Recycling | Identified exit to Scraptown 10748 | -7/Recycling | Entered Scraptown 10748 | -7/Scraptown | Accompanied by 4 allies 10748 | -7/Scraptown | System corruption cleaned by C-Scrubber 10925 | -7/Scraptown | Visited TADAMA 10962 | -7/Scraptown | Visited SPCMW 10974 | -7/Scraptown | Visited Assassins FH 10978 | -7/Scraptown | Visited Junk Repository 10987 | -7/Scraptown | Heard Great Nut preacher, LISTEN AND RECITE! 11036 | -7/Scraptown | Discovered new exit (range 13) 11068 | -7/Scraptown | Visited IN-MT5's Study 11079 | -7/Scraptown | Visited CR-KLE's Repair Center 11088 | -7/Scraptown | Turned away by UFD registrar 11261 | -7/Scraptown | Build established: Commander-Mutant 11371 | -7/Scraptown | CR-KLE repaired 9 parts 11491 | -7/Scraptown | Identified exit to Factory 11497 | -7/Scraptown | System corruption cleaned by C-Scrubber 11519 | -7/Scraptown | Entered Factory 11519 | -5/Factory | Accompanied by 4 allies 11519 | -5/Factory | Evolved 4 slots: Propulsion x1, Utility x3 11812 | -5/Factory | Discovered new exit (range 12) 11834 | -5/Factory | Build established: Hacker-Mutant 11970 | -5/Factory | Discovered new exit (range 4) 11971 | -5/Factory | Identified exit to Factory 12170 | -5/Factory | Discovered new exit (range 15) 12176 | -5/Factory | Identified exit to Upper Caves 12259 | -5/Factory | Repaired Imp. Light Armor Plating 12334 | -5/Factory | Discovered exit to Factory (range 8) 12487 | -5/Factory | Fabricated Imp. Gyrokinetic Inverter? 12522 | -5/Factory | Core integrity fell below 50% 12522 | -5/Factory | System corruption reached 10% 12591 | -5/Factory | Core integrity fell below 20% 12607 | -5/Factory | Released all parts (10) 12616 | -5/Factory | Lost 17 parts (2p6n6u3w) 12621 | -5/Factory | Destroyed by Y-64 Sentinel with Wave Gun Last Messages --------------- 12599_ U-05 Engineer lays Concrete. 12603_ Acquired 14 matter. 12604_ U-05 Engineer lays Concrete. 12605_ Critical hit (Burn: +37). 12607_ Released System Restoration Module. 12607_ Released Imp. Gyrokinetic Inverter. 12607_ Released Gravity Neutralizer. 12607_ Released Gyrokinetic Inverter. 12607_ Released Mak. Hacking Suite. 12607_ Released Imp. Signal Interpreter. 12607_ Released Core Analyzer. 12607_ Released Lrg. Storage Unit. 12607_ Released Imp. Medium Armor Plating. 12608_ System corrupted: Matter fused (-6). 12609_ Penetrated by Slug. 12611_ W-25 Informer sends out distress signal. 12611_ Penetrated by Slug. 12614_ Slug penetrates K-01 Serf. 12614_ R-10 Processor collects Imp. Kinecellerator. Map ----- +----------------------------------------------------+ | "?? #????????????????????????????????????? | | """"" #????????????????????????????????????? | | """"" #????????????????????????????????????? | | #????????????????????????????????????? | | """ #????????????????????????????????????? | | """"" #????????????????????????????????????? | | """"" #????????????????????????????????????? | | #?????????####+####??????????????????? | | #####/#############+### #??????????????????? | | #??????????????????? | | #??????????????????? | | RR #??????????????????? | | !!!! Y #??????????????????? | | !R=R| #??????????????????? | | ####################### #??????????????????? | | #?### ###??????????????????? | | """ #???# #????????????????????? | | """ #???# u #????????????????????? | | R" #???# #????????????????????? | | # """ #???# #????????????????????? | | ! #???# #????????????????????? | | !! #???#t #????????????????????? | | #???# +????????????????????? | | % #???# #????????????????????? | | ## ############# #????????????????????? | | u @ #????????????????????? | | k ???????????????? | | g #######??????????????? | | ###############+##########+##????????????????????? | | #???????????????????????????????????????????????? | | #???????????????????????????????????????????????? | | #???????????????????????????????????????????????? | | #???????????????????????????????????????????????? | | #???????????????????????????????????????????????? | | #???????????????????????????????????????????????? | | ##???????????????????????????????????????????????? | | ?????????????????????????????????????????????????? | | ?????????????????????????????????????????????????? | | ?????????????????????????????????????????R???????? | | ?????????????????????????????????????????????????? | | ?????????????????????????????????????????????????? | | ?????????????????????????????????????????????????? | | ?????????????????????????????????????????????????? | | ?????????????????????????????????????????????????? | | ?????????????????????????????????????????????????? | | ?????????????????????????????????????????????????? | | ?????????????????????????????????????????????????? | | ?????????????????????????????????????????????????? | | ?????????????????????????????????????????????????? | | ?????????????????????????????????????????????????? | +----------------------------------------------------+ Best States ------------- Heat Dissipation 61 Energy Generation 17 Energy Capacity 800 Matter Stores 300 Matter Capacity 550 Sight Range 16 Robot Scan Range 15 Terrain Scan Range 16 Terrain Scan Density 10 ECM Strength 1 Jamming Range 12 Armor Coverage 225 Utility Shielding 66 Evasion (%) 63 Core Analysis 6 Recoil Reduction 4 Offensive Hacking 23 Defensive Hacking 14 Authchip Count 2 Item Schematics ----------------- Cargo Storage Unit | -10/Materials | Hacked Seismic Detector | -10/Materials | Hacked Cld. Airjet | -8/Materials | Scanalyzed Aerolev Unit | -8/Materials | Scanalyzed Imp. VTOL Module | -8/Materials | Scanalyzed Gravmag System | -7/Factory | Scanalyzed Gravity Neutralizer | -5/Factory | Scanalyzed Robot Schematics ------------------ None Fabricated ------------ Aerolev Unit | x1 | -7/Factory | Authchip Imp. Gyrokinetic Inverter | x2 | -5/Factory | Preloaded Repaired ---------- Med. Armor Plating | 6% | -10/Materials Med. Armor Plating | 59% | -8/Materials Imp. Terrain Scanner | 4% | -8/Materials Med. Armor Plating | 31% | -8/Materials Imp. Light Armor Plating | 35% | -5/Factory Alien Tech Used ----------------- None Achievements -------------- Exterminator Challenges ------------ None Game ------ Seed HoverPoweredMegatreads Manual? 0 Play Time 02:31:25 Cumulative 224.7 hours Start 2025.07.18 @ 17:56:20 End 2025.07.18 @ 20:34:02 Sessions 1 Manual Loads 0 Difficulty Rogue Special Mode None Game No. 143 Rogue 139 Adventurer 4 Explorer 0 Win Type - Total 7 Types 6/0/1/0/0/0/0/0/0/0 Lore% 81 Gallery% 71 Achievement% 61 Wizard Run 0 Options --------- Layout 1 ASCII 0 Keyboard 1 Movement Vi Keybinds 1 Fullscreen 2 Font 24/Smallcaps Map View 50x35 Zoom Use 0% Tactical HUD 1 Map Filters NONE Filters NONE Steam 1 RUN: 802b235a-0b64-4ea3-8562-f869f3356681